bitfinex-derivatives/quotes_ETHF0:USTF0_20250816
["timestamp","ask_amount","ask_price","bid_price","bid_amount"]
[1755306950551,1.6818,4483.3,4483.2,1.0591]
[1755306950950,1.6818,4483.3,4483.2,1.3065]
[1755306951748,1.6818,4483.3,4483.2,1.0591]
[1755306953350,1.069,4483.3,4483.2,1.0591]
[1755306953649,24.213,4483.4,4483.0,0.254]
[1755306953850,1.0274,4483.3,4483.2,1.3065]
[1755306954246,1.2842,4483.3,4483.2,1.3065]
[1755306954456,1.6818,4483.3,4483.2,1.3065]
[1755306955057,0.6565,4483.3,4483.2,1.3065]
[1755306955248,1.55164552,4483.3,4483.2,1.3065]
[1755306955551,1.80844552,4483.3,4483.2,1.0591]
[1755306955856,1.55164552,4483.3,4483.2,0.6705]
[1755306956046,1.80844552,4483.3,4483.2,1.0591]
[1755306956250,1.6818,4483.1,4483.0,0.6705]
[1755306956646,1.6818,4483.1,4483.0,0.1626]
[1755306957151,1.80860279,4483.1,4483.0,0.1626]
[1755306957352,0.2568,4483.0,4482.9,3.2078]
[1755306957554,0.6544,4482.9,4482.2,3.2078]
[1755306957757,1.6818,4482.3,4482.2,3.2078]
[1755306958060,25.4338,4482.3,4482.2,3.8783]
[1755306958250,25.177,4482.3,4482.2,4.5143]
[1755306958452,25.4338,4482.3,4482.2,4.5143]
[1755306958758,25.177,4482.3,4482.2,4.9123]
[1755306959160,24.1645,4482.3,4482.2,4.9123]
[1755306959457,24.821,4482.3,4482.2,4.9123]
[1755306960254,23.752,4482.3,4482.2,4.9123]
[1755306960659,24.4085,4482.3,4482.2,4.9123]
[1755306960859,23.752,4482.3,4482.2,4.9123]
[1755306961060,24.0109,4482.3,4482.2,4.9123]
[1755306961260,24.5766,4482.3,4482.2,4.9123]
[1755306961458,24.821,4482.3,4482.2,3.2078]
[1755306961658,0.3976,4483.3,4482.2,3.8717]
[1755306961955,0.36432655,4483.2,4483.1,1.7045]
[1755306962159,24.02032655,4483.2,4483.1,1.7045]
[1755306962556,24.84492655,4483.2,4483.1,1.7045]
[1755306963455,25.44532655,4483.2,4483.1,1.7045]
[1755306966258,0.6714,4483.0,4482.9,3.2078]
[1755306966459,2.04612655,4483.0,4482.9,3.2078]
[1755306966655,0.6714,4482.5,4482.4,3.2078]
[1755306966857,25.59012655,4482.5,4482.2,0.254]
[1755306967059,1.6818,4482.3,4482.2,0.6705]
[1755306967354,1.1959985,4482.3,4481.9,3.2078]
[1755306967555,25.58422013,4482.2,4482.1,1.58656099]
[1755306968161,25.58422013,4482.2,4481.9,3.2078]
[1755306968162,0.6128,4482.1,4482.0,1.58656099]
[1755306968364,1.069,4482.0,4481.9,4.79436099]
[1755306968563,2.04622013,4482.0,4481.9,4.79436099]
[1755306968765,2.04622013,4482.0,4481.9,5.04836099]
[1755306969157,1.8087985,4482.0,4481.9,5.04836099]
[1755306969356,1.8087985,4482.0,4481.9,3.4618]
[1755306969661,2.04608551,4482.0,4481.9,3.2078]
[1755306970359,2.04602105,4482.0,4481.9,3.2078]
[1755306972265,2.04594563,4482.0,4481.9,3.2078]
[1755306972966,2.04594563,4482.0,4481.9,3.6244]
[1755306973263,2.04594563,4482.0,4481.9,3.2078]
[1755306973470,1.78914563,4482.0,4481.9,4.2669]
[1755306973669,1.78914563,4482.0,4481.9,4.5143]
[1755306973962,2.04594563,4482.0,4481.9,4.1257]
[1755306974161,2.04594563,4482.0,4481.9,3.2078]
[1755306974969,1.78914563,4482.0,4481.9,3.3704]
[1755306975165,1.432879,4482.0,4481.9,3.8783]
[1755306975372,1.432879,4482.0,4481.9,4.9123]
[1755306975571,1.788879,4482.0,4481.9,4.9123]
[1755306975978,2.045679,4482.0,4481.9,4.9123]
[1755306976378,0.622779,4482.0,4481.9,4.9123]
[1755306976577,0.2589,4482.0,4481.9,4.9123]
[1755306977176,0.6714,4482.0,4481.9,3.8717]
[1755306977376,1.425,4482.0,4481.9,4.2697]
[1755306977574,1.069,4482.0,4481.9,4.2697]
[1755306977774,0.8246,4482.0,4481.9,4.9123]
[1755306977974,24.0976,4482.0,4481.9,4.9123]
[1755306978875,24.342,4482.0,4481.9,4.9123]
[1755306979075,23.273,4482.0,4481.9,4.9123]
[1755306979375,23.5178,4482.0,4481.9,4.9123]
[1755306979581,24.3249,4482.0,4481.9,4.9123]
[1755306979883,24.6887,4482.0,4481.9,4.9123]
[1755306980379,27.78517338,4482.0,4481.9,3.2078]
[1755306980580,28.02255748,4482.0,4481.9,3.2078]
[1755306982490,0.6567,4481.5,4481.4,3.6085]
[1755306982689,24.6187,4481.5,4481.4,4.5095]
[1755306982877,24.6187,4481.5,4481.4,4.8775]
[1755306983275,24.8801,4481.5,4481.4,3.8646]
[1755306983483,25.00682281,4481.5,4481.4,0.6568]
[1755306983888,24.8801,4481.5,4481.4,1.3017]
[1755306984384,24.8801,4481.5,4481.4,1.6697]
[1755306985580,24.8801,4481.5,4481.4,1.3017]
[1755306985581,25.00682078,4481.5,4481.4,1.3017]
[1755306986178,24.6187,4481.5,4480.9,3.2078]
[1755306986383,0.6567,4481.0,4480.9,4.123]
[1755306986587,24.1439,4481.0,4480.9,4.8775]
[1755306986786,23.9021,4481.0,4480.9,4.8775]
[1755306988978,23.9021,4481.0,4480.9,3.6085]
[1755306989179,24.7691,4481.0,4480.9,3.8646]
[1755306989384,24.7691,4481.0,4480.9,4.5095]
[1755306989586,24.7691,4481.0,4480.9,3.8646]
[1755306989788,24.7691,4481.0,4480.9,4.8775]
[1755306989988,24.5077,4481.0,4480.9,4.8775]
[1755306990989,24.7691,4481.0,4480.4,3.4639]
[1755306991184,0.78343543,4480.9,4480.8,0.1593]
[1755306991385,0.78343543,4480.9,4480.8,0.6568]
[1755306991583,0.78343543,4480.9,4480.8,1.0433]
[1755306991783,1.80383543,4480.9,4480.8,1.0433]
[1755306992289,2.04118967,4480.9,4480.8,1.0433]
[1755306992792,0.6567,4480.7,4480.6,1.6697]
[1755306993089,24.3587,4480.7,4480.6,1.6697]
[1755306994983,23.9949,4480.7,4480.6,1.6697]
[1755306995185,23.1878,4480.7,4480.6,1.6697]
[1755306995582,23.583,4480.7,4480.6,1.6697]
[1755306996592,23.7531,4480.7,4480.6,1.6697]
[1755306996992,23.9949,4480.7,4480.6,1.6697]
[1755306997192,24.3587,4480.7,4480.6,1.6697]
[1755306997393,24.6201,4480.7,4480.6,1.6697]
[1755306997587,24.74695453,4480.7,4480.6,1.6697]
[1755306998489,24.09035453,4480.7,4480.4,3.2078]
[1755306998694,1.6771,4480.6,4480.5,0.4154]
[1755306998894,1.6771,4480.6,4480.5,1.0433]
[1755306999096,1.6771,4480.6,4480.5,1.6697]
[1755307002494,1.4157,4480.6,4480.5,1.6697]
[1755307005195,22.943,4480.7,4480.6,1.0106]
[1755307005501,24.48555369,4480.7,4480.6,1.6697]
[1755307005698,24.74695369,4480.7,4480.6,1.6697]
[1755307005897,24.74695369,4480.7,4480.6,1.3017]
[1755307006298,24.9854961,4480.7,4480.6,1.3017]
[1755307006896,24.9854961,4480.7,4480.6,0.4154]
[1755307007096,24.7240961,4480.7,4480.6,0.7872]
[1755307007304,24.9854961,4480.7,4480.6,1.0433]
[1755307009599,24.9854961,4480.7,4480.6,0.6568]
[1755307009801,24.9854961,4480.7,4480.6,0.2561]
[1755307010397,24.9854961,4480.7,4480.6,0.4157]
[1755307010597,24.9854961,4480.7,4480.6,1.0697]
[1755307011701,24.9854961,4480.7,4480.6,0.2561]
[1755307012604,24.98579956,4480.7,4480.6,0.2561]
[1755307012794,0.7538,4480.6,4480.4,3.2078]
[1755307012995,0.6439,4480.4,4480.2,0.2557]
[1755307013198,24.49779956,4480.3,4480.2,0.2557]
[1755307013395,24.85329956,4480.3,4480.2,0.2557]
[1755307013602,24.85329956,4480.3,4480.2,0.4153]
[1755307013801,24.85329956,4480.3,4480.2,1.0693]
[1755307014500,24.85329956,4480.3,4480.2,0.42]
[1755307014804,1.6416,4480.2,4480.1,0.51574307]
[1755307015003,4.71566479,4480.2,4480.1,1.16974307]
[1755307015198,4.71566479,4480.2,4480.1,1.40794307]
[1755307015398,4.71566479,4480.2,4480.1,1.78714307]
[1755307016201,4.47006479,4480.2,4480.1,0.10044307]
[1755307016405,4.47006479,4480.2,4480.1,1.78714307]
[1755307016604,4.71566479,4480.2,4480.1,1.78714307]
[1755307018313,4.71593336,4480.2,4480.1,1.78714307]
[1755307019009,4.47033336,4480.2,4480.1,0.10044307]
[1755307019312,4.71593336,4480.2,4480.1,0.10044307]
[1755307019915,4.71593336,4480.2,4480.1,0.35614307]
[1755307022912,4.58899253,4480.2,4480.1,0.35614307]
[1755307023116,0.36615681,4480.2,4480.1,1.78714307]
[1755307023311,23.20215681,4480.2,4480.1,1.78714307]
[1755307024410,3.2078,4481.4,4480.1,6.7227083]
[1755307024619,23.2338,4481.3,4481.2,1.0518]
[1755307024815,24.4746,4481.3,4481.2,1.6867]
[1755307025015,24.4746,4481.3,4481.2,0.8136]
[1755307025212,23.2396,4481.3,4481.2,0.42]
[1755307025512,24.4746,4481.3,4481.2,1.6867]
[1755307028916,22.833,4481.3,4481.2,1.6867]
[1755307029415,23.6379,4481.3,4481.2,1.6867]
[1755307029616,23.8777,4481.3,4481.2,1.6867]
[1755307030313,24.2332,4481.3,4481.2,1.6867]
[1755307030707,34.84336523,4481.7,4481.6,1.2931]
[1755307030708,32.135,4481.7,4481.6,1.2931]
[1755307030907,22.819,4481.7,4481.6,1.6867]
[1755307032816,22.815,4481.7,4481.6,0.6582]
[1755307033511,22.815,4481.7,4481.6,1.6867]
[1755307034822,0.9994,4482.4,4481.7,1.0285]
[1755307035115,1.6416,4482.2,4482.1,0.42]
[1755307035320,1.6416,4482.2,4482.1,0.8136]
[1755307035819,1.0447,4481.6,4481.5,4.8945]
[1755307036020,22.806,4481.6,4481.5,4.8945]
[1755307036213,22.806,4481.6,4481.5,4.6388]
[1755307036520,24.4476,4481.6,4481.5,4.8945]
[1755307036821,22.806,4481.6,4481.5,4.8945]
[1755307037420,23.3653,4481.6,4481.5,4.8945]
[1755307037718,23.6109,4481.6,4481.5,4.8945]
[1755307037924,23.8507,4481.6,4481.5,4.8945]
[1755307038919,23.2068,4481.6,4481.5,4.8945]
[1755307039114,22.806,4481.6,4481.5,4.8945]
[1755307039323,23.6058,4481.6,4481.5,4.8945]
[1755307039524,23.8609,4481.6,4481.5,4.8945]
[1755307039722,24.1012,4481.6,4481.5,4.8945]
[1755307039922,24.4595,4481.6,4481.5,4.8945]
[1755307041323,23.7259,4481.6,4481.0,3.2078]
[1755307041624,0.6644,4481.2,4481.1,0.6825]
[1755307041822,24.0852,4481.2,4481.1,0.6825]
[1755307042526,23.5894,4481.2,4481.1,1.7015]
[1755307044326,23.8449,4481.2,4481.1,1.7015]
[1755307044732,0.6644,4481.1,4480.5,3.2078]
[1755307044931,1.6535,4480.8,4480.7,1.7015]
[1755307045133,24.4355,4480.8,4480.7,1.7015]
[1755307046526,22.782,4480.8,4480.7,1.7015]
[1755307046928,22.78,4481.1,4480.7,0.6825]
[1755307047128,23.4108,4481.1,4481.0,4.9093]
[1755307048534,23.8349,4481.1,4481.0,4.9093]
[1755307048735,24.4335,4481.1,4481.0,3.8298]
[1755307049035,24.4335,4481.1,4481.0,4.9093]
[1755307049231,24.4335,4481.1,4481.0,4.2873]
[1755307049436,24.4335,4481.1,4481.0,4.9093]
[1755307053439,22.78,4481.1,4481.0,4.9093]
[1755307053640,23.1553,4481.1,4481.0,4.9093]
[1755307053839,23.8349,4481.1,4481.0,4.9093]
[1755307054139,24.1932,4481.1,4481.0,4.9093]
[1755307055837,24.4335,4481.1,4481.0,4.9093]
[1755307056638,27.14186523,4481.1,4480.5,5.15331405]
[1755307056938,1.6535,4480.2,4480.1,0.10044307]
[1755307057144,27.9531813,4480.2,4480.1,0.10044307]
[1755307059340,27.73220483,4480.2,4480.1,0.10044307]
[1755307060549,0.169,4479.1,4479.0,3.3806]
[1755307060741,24.3935,4479.1,4479.0,4.5387]
[1755307061043,27.10186523,4479.1,4478.5,3.2078]
[1755307061346,0.6644,4479.0,4478.9,0.2514]
[1755307061539,0.6644,4479.0,4478.5,3.2078]
[1755307061739,0.4241,4478.2,4478.1,1.7015]
[1755307061944,23.7929,4478.2,4478.1,1.7015]
[1755307063438,24.3915,4478.2,4478.1,0.7948]
[1755307063749,24.3915,4478.2,4478.1,1.0531]
[1755307064645,24.3915,4478.2,4478.0,3.2078]
[1755307064943,1.6535,4478.1,4478.0,4.0026]
[1755307065539,1.6535,4478.1,4478.0,3.2078]
[1755307066144,1.6535,4478.1,4478.0,3.4592]
[1755307066346,1.6535,4478.1,4478.0,3.632]
[1755307066546,1.6535,4478.1,4478.0,4.2609]
[1755307067148,1.64885421,4478.1,4478.0,4.2609]
[1755307067348,1.64885421,4478.1,4478.0,3.632]
[1755307067551,1.64885421,4478.1,4478.0,3.4592]
[1755307067952,1.64885421,4478.1,4478.0,0.2514]
[1755307068657,1.64885421,4478.1,4478.0,0.7814]
[1755307069657,0.1737,4477.6,4477.5,0.5177]
[1755307069855,23.7414,4477.6,4477.5,1.6331]
[1755307070956,0.3542,4478.3,4477.5,0.6626]
[1755307071262,1.0214,4478.4,4478.3,1.6331]
[1755307071462,23.7384,4478.4,4478.3,1.6331]
[1755307071658,24.1198,4478.4,4478.3,1.6331]
[1755307072557,24.1148,4478.4,4478.3,1.6331]
[1755307073258,24.3658,4478.4,4478.3,1.6331]
[1755307086470,24.48651818,4478.4,4478.3,1.6331]
[1755307087270,24.7074534,4478.4,4478.3,1.6331]
[1755307087866,0.6701,4478.1,4478.0,3.6292]
[1755307088070,24.3168,4478.1,4478.0,3.9864]
[1755307088270,24.3168,4478.1,4478.0,4.8409]
[1755307090167,24.53820383,4478.1,4478.0,4.8409]
[1755307090471,24.65922704,4478.1,4478.0,4.8409]
[1755307093675,23.42452704,4478.1,4478.0,4.8409]
[1755307093872,23.00542704,4478.1,4478.0,4.8409]
[1755307094273,23.35962704,4478.1,4478.0,4.8409]
[1755307094471,23.60772704,4478.1,4478.0,4.8409]
[1755307094872,22.98242704,4478.1,4478.0,4.8409]
[1755307095273,24.25482704,4478.1,4478.0,4.2276]
[1755307095577,24.63622704,4478.1,4478.0,3.9864]
[1755307097179,24.63746813,4478.1,4478.0,3.9864]
[1755307097374,24.38936813,4478.1,4477.6,0.3572]
[1755307097578,1.6538,4477.7,4477.6,0.6181]
[1755307097872,24.39794525,4477.7,4477.6,0.7786]
[1755307098175,24.39796058,4477.7,4477.6,0.7786]
[1755307099178,24.2768,4477.7,4477.6,0.7786]
[1755307099378,24.39796145,4477.7,4477.6,1.3948]
[1755307099594,24.2768,4477.7,4477.6,1.6377]
[1755307101383,24.2768,4477.7,4477.6,0.7786]
[1755307101776,24.39796082,4477.7,4477.6,0.7786]
[1755307101972,24.62051196,4477.7,4477.6,0.7786]
[1755307102278,1.0032,4477.6,4477.5,3.3773]
[1755307102479,1.72986082,4477.6,4477.5,4.8495]
[1755307102878,1.95238117,4477.6,4477.5,4.8495]
[1755307104180,1.72986082,4477.6,4477.5,4.8495]
[1755307104380,1.48546082,4477.6,4477.5,4.8495]
[1755307104583,1.12436082,4477.6,4477.5,4.8495]
[1755307107782,1.72986082,4477.6,4477.5,4.8495]
[1755307108782,1.6087,4477.6,4477.5,4.8495]
[1755307109087,1.72975473,4477.6,4477.5,4.8495]
[1755307109288,0.12105473,4477.6,4477.5,4.8495]
[1755307109488,22.623,4477.7,4477.5,3.8583]
[1755307109787,0.7777,4477.6,4477.5,3.8583]
[1755307109991,0.9802,4478.8,4477.5,3.8583]
[1755307110192,23.54983345,4478.7,4478.6,0.4083]
[1755307110387,23.54983345,4478.7,4478.6,0.2388]
[1755307110692,23.54983345,4478.7,4478.0,3.2078]
[1755307110882,1.2476,4478.1,4478.0,3.2078]
[1755307111190,24.29772793,4478.1,4478.0,3.9904]
[1755307111388,24.29772793,4478.1,4478.0,4.8495]
[1755307111589,23.5712,4478.1,4478.0,4.8495]
[1755307112087,23.9323,4478.1,4478.0,4.8495]
[1755307112283,24.05332537,4478.1,4478.0,4.8495]
[1755307112590,24.29772244,4478.1,4478.0,3.2078]
[1755307114989,24.29772244,4478.1,4478.0,4.2326]
[1755307115180,23.69222244,4478.1,4478.0,4.8495]
[1755307116685,22.68902244,4478.1,4478.0,4.8495]
[1755307116995,23.30812244,4478.1,4478.0,4.8495]
[1755307117385,23.69222785,4478.1,4478.0,4.8495]
[1755307117586,24.02632785,4478.1,4478.0,4.8495]
[1755307119692,3.2078,4479.0,4478.0,4.8495]
[1755307119895,32.7741,4478.9,4478.8,1.6417]
[1755307120192,56.00750205,4478.9,4478.8,1.6417]
[1755307120493,33.47850205,4478.9,4478.8,1.6417]
[1755307120697,0.34330205,4478.9,4478.8,1.6417]
[1755307120886,22.525,4479.1,4478.8,1.6417]
[1755307121086,22.525,4479.1,4478.8,0.6505]
[1755307121087,1.6087,4478.9,4478.8,0.6505]
[1755307121587,22.525,4479.1,4478.8,1.2674]
[1755307121788,24.1337,4479.1,4479.0,0.4083]
[1755307121989,24.1337,4479.1,4479.0,0.7826]
[1755307123189,0.6285,4478.9,4478.8,0.7826]
[1755307123395,1.6087,4478.9,4478.8,0.7826]
[1755307123890,22.513,4478.9,4478.8,0.6505]
[1755307124295,22.51,4478.9,4478.8,0.6505]
[1755307124487,22.51,4478.9,4478.8,1.6417]
[1755307127392,23.0344,4478.9,4478.8,1.6417]
[1755307127588,23.5132,4478.9,4478.8,1.0248]
[1755307127794,24.1187,4478.9,4478.8,1.0248]
[1755307129697,24.1187,4478.9,4478.8,1.6316]
[1755307131499,24.1187,4478.9,4478.8,0.7826]
[1755307132896,24.1187,4478.9,4478.8,1.3567]
[1755307133203,24.1187,4478.9,4478.8,1.6186]
[1755307135500,24.1187,4478.9,4478.8,1.0445]
[1755307135900,24.1187,4478.9,4478.8,1.2737]
[1755307136202,24.1187,4478.9,4478.8,1.6186]
[1755307138705,1.6334,4478.8,4478.7,3.2078]
[1755307138904,1.6334,4478.8,4478.7,3.9997]
[1755307139404,1.6334,4478.8,4478.7,4.8357]
[1755307142198,1.6334,4478.8,4478.7,4.2289]
[1755307143002,1.6334,4478.8,4478.7,3.2078]
[1755307143204,0.6411,4478.3,4478.2,1.94551405]
[1755307143400,1.6334,4478.2,4478.1,3.2078]
[1755307144303,1.6334,4478.2,4478.1,2.1056]
[1755307146603,1.75426654,4478.2,4478.1,2.1056]
[1755307147409,1.75426654,4478.2,4477.7,0.3449]
[1755307147410,0.4166,4477.7,4477.6,3.2078]
[1755307147604,0.4166,4477.2,4477.1,3.5527]
[1755307147811,26.16686523,4477.2,4477.1,0.3449]
[1755307148007,25.52496523,4477.2,4476.8,0.4911]
[1755307148212,0.4166,4477.0,4476.9,0.7197]
[1755307148408,0.4166,4477.0,4476.6,0.9489]
[1755307148710,25.10836523,4477.2,4476.6,0.9489]
[1755307148711,23.4555,4476.9,4476.8,0.9912]
[1755307149208,0.4166,4476.6,4476.5,0.5741]
[1755307149409,23.4535,4476.6,4476.5,1.2053]
[1755307149609,23.4535,4476.6,4476.5,1.366]
[1755307150117,23.4535,4476.6,4476.5,1.6279]
[1755307151310,23.4535,4476.6,4476.5,1.2053]
[1755307151516,22.8116,4476.6,4476.5,0.8305]
[1755307152110,23.4535,4476.6,4476.5,0.8305]
[1755307152312,0.2473,4476.4,4475.7,1.94551405]
[1755307152513,1.628,4475.5,4475.4,3.8541]
[1755307152712,0.5923,4475.4,4474.8,0.2619]
[1755307152910,4.33636523,4475.4,4475.3,1.0211]
[1755307153510,5.88906523,4475.4,4474.7,3.2078]
[1755307153716,0.6411,4474.3,4474.2,1.0211]
[1755307153912,24.004,4474.3,4474.2,1.283]
[1755307154517,24.004,4474.3,4474.2,1.6279]
[1755307155213,24.004,4474.3,4474.2,1.366]
[1755307155408,26.71236523,4474.3,4474.0,3.2078]
[1755307155614,0.6411,4474.1,4474.0,4.0383]
[1755307155810,1.628,4474.1,4474.0,4.0383]
[1755307156010,1.628,4474.1,4474.0,4.5738]
[1755307156614,1.628,4474.1,4474.0,4.199]
[1755307156817,1.628,4474.1,4474.0,4.5738]
[1755307157817,1.628,4474.1,4474.0,4.8357]
[1755307158813,22.361,4474.1,4474.0,3.8541]
[1755307159120,23.0286,4474.1,4474.0,3.8541]
[1755307159320,23.9844,4474.1,4474.0,4.5663]
[1755307160517,23.9844,4474.1,4474.0,4.8211]
[1755307160919,23.6427,4474.1,4474.0,4.8211]
[1755307161417,23.6427,4474.1,4474.0,3.2078]
[1755307161717,23.6427,4474.1,4474.0,4.8312]
[1755307162612,1.2817,4474.1,4474.0,4.8312]
[1755307162819,1.2817,4474.6,4474.5,1.6234]
[1755307163017,23.9724,4474.6,4474.5,1.6234]
[1755307163629,1.6234,4474.6,4474.5,1.6234]
[1755307163823,32.159,4475.1,4475.0,0.6564]
[1755307164028,54.503,4475.1,4475.0,1.6234]
[1755307164229,57.2705,4475.1,4475.0,1.3686]
[1755307164933,56.5661,4475.1,4475.0,1.6234]
[1755307165229,33.959,4475.1,4475.0,4.8312]
[1755307165430,56.297,4475.1,4475.0,4.8312]
[1755307166023,56.296,4475.1,4475.0,4.8312]
[1755307166224,33.959,4475.1,4475.0,4.8312]
[1755307166427,1.4052,4475.1,4475.0,4.8312]
[1755307166631,23.7392,4475.1,4475.0,4.8312]
[1755307166929,1.4052,4475.1,4475.0,4.8312]
[1755307167227,1.016,4476.4,4476.3,0.413]
[1755307167431,0.2631,4476.8,4476.3,0.5593]
[1755307167731,0.2514,4475.6,4475.5,3.2078]
[1755307167925,26.66546523,4475.6,4475.5,3.2078]
[1755307168822,23.3623,4475.6,4475.5,3.9988]
[1755307169027,26.66246523,4475.6,4475.5,3.4562]
[1755307169223,26.66246523,4475.6,4475.5,3.2078]
[1755307169830,26.66246523,4475.6,4475.1,0.378]
[1755307170029,3.36426523,4475.2,4475.1,0.378]
[1755307170225,26.65446523,4475.2,4475.1,0.378]
[1755307170431,26.65446523,4475.2,4475.1,0.6264]
[1755307170432,23.9451,4475.2,4475.1,0.6264]
[1755307170725,1.6301,4475.2,4475.1,0.6264]
[1755307170929,23.9451,4475.2,4475.1,0.6264]
[1755307171224,23.9451,4475.2,4474.4,0.1463]
[1755307171225,0.6559,4474.6,4474.5,3.6208]
[1755307171429,26.65246523,4474.6,4474.5,3.9988]
[1755307172329,26.65246523,4474.6,4474.5,3.4562]
[1755307173735,26.65246523,4474.6,4474.5,3.9988]
[1755307174732,4.33846523,4474.6,4474.5,0.791]
[1755307174934,26.63646523,4474.6,4474.5,0.791]
[1755307178230,26.8704203,4474.6,4474.5,0.791]
[1755307178835,26.8704203,4474.6,4474.5,0.2484]
[1755307180637,26.8704203,4474.6,4474.5,0.6264]
[1755307181334,0.2631,4474.5,4474.0,3.2078]
[1755307181633,25.2403203,4474.6,4474.0,3.9988]
[1755307181634,1.6301,4474.1,4474.0,3.9988]
[1755307181833,23.77182492,4474.1,4474.0,3.9988]
[1755307182036,24.13452492,4474.1,4474.0,3.9988]
[1755307182844,1.2256,4474.0,4473.9,0.2484]
[1755307183137,1.86452492,4474.0,4473.9,0.2484]
[1755307183343,1.86452492,4474.0,4473.9,0.791]
[1755307183542,1.86452492,4474.0,4473.1,0.10060025]
[1755307183543,1.2674,4473.2,4473.1,0.10060025]
[1755307183739,0.6559,4472.4,4472.3,0.5426]
[1755307184043,0.9742,4472.3,4472.0,0.378]
[1755307184343,4.33846523,4472.1,4472.0,0.2484]
[1755307184543,4.33846523,4472.1,4471.3,3.2078]
[1755307184544,26.03407106,4472.1,4471.3,3.2078]
[1755307184740,1.6301,4471.9,4471.8,0.791]
[1755307184944,2.03990583,4471.9,4471.8,0.791]
[1755307185341,2.03990583,4471.9,4471.8,0.6264]
[1755307185640,0.4045,4471.4,4471.3,3.6208]
[1755307185944,24.06117847,4471.4,4471.3,3.6208]
[1755307186137,24.06117847,4471.4,4471.3,3.9988]
[1755307187238,0.2631,4472.0,4471.3,3.9988]
[1755307187442,0.7726,4472.0,4471.9,0.413]
[1755307187642,24.29081609,4472.0,4471.9,0.2484]
[1755307187844,0.2434,4471.5,4471.4,0.6264]
[1755307188045,24.05467211,4471.5,4471.4,0.791]
[1755307188941,22.42157211,4471.5,4471.4,0.9375]
[1755307189639,23.65877211,4471.5,4471.4,0.791]
[1755307189839,24.05217211,4471.5,4471.4,0.791]
[1755307190238,1.6306,4471.4,4471.3,3.2078]
[1755307190443,1.2372,4471.4,4471.3,4.0048]
[1755307190739,0.261,4471.4,4471.3,4.1513]
[1755307191042,0.261,4471.6,4471.5,0.9435]
[1755307191242,23.01055911,4471.6,4471.5,0.9435]
[1755307191434,23.41345911,4471.6,4471.5,0.797]
[1755307191633,23.41345911,4471.6,4471.5,0.9435]
[1755307191843,1.17345911,4471.6,4471.5,0.9435]
[1755307192044,23.41345911,4471.6,4471.5,0.9435]
[1755307192243,0.261,4471.5,4471.3,3.2078]
[1755307192445,0.261,4471.4,4471.3,3.7717]
[1755307192943,0.261,4471.4,4471.3,4.1513]
[1755307193139,0.7657,4471.4,4471.3,4.1513]
[1755307193345,0.5963,4471.4,4471.3,4.1513]
[1755307193540,0.261,4471.4,4471.3,4.1513]
[1755307194450,0.9992,4471.4,4471.3,4.1513]
[1755307194751,0.9992,4471.4,4471.3,4.0048]
[1755307194950,1.2372,4471.4,4471.3,4.0048]
[1755307195246,1.2372,4471.4,4471.3,3.3726]
[1755307195450,1.6306,4471.4,4471.3,4.0048]
[1755307196149,1.6306,4471.4,4471.3,3.84]
[1755307196348,1.6306,4471.4,4471.3,3.4604]
[1755307197441,1.6306,4471.4,4471.3,3.84]
[1755307198355,1.6306,4471.4,4471.3,3.4604]
[1755307198651,1.6306,4471.4,4471.3,3.84]
[1755307199053,1.2372,4471.4,4471.3,4.0048]
[1755307199247,23.8426,4471.4,4471.3,4.0048]
[1755307199955,21.8426,4471.4,4471.3,4.2316]
[1755307200150,22.4835,4471.4,4471.3,4.8209]
[1755307200451,22.4835,4471.4,4471.3,3.2078]
[1755307200647,1.0343,4471.1,4471.0,1.6131]
[1755307201449,0.2335,4470.8,4470.7,3.2078]
[1755307201655,23.2383,4470.8,4470.7,3.3726]
[1755307201854,23.2383,4470.8,4470.7,3.2078]
[1755307202153,23.8346,4470.8,4470.7,3.2078]
[1755307203149,23.8346,4470.8,4470.7,3.3726]
[1755307203351,23.8346,4470.8,4470.7,3.2078]
[1755307204153,23.8346,4470.8,4470.7,3.6252]
[1755307204355,23.8346,4470.8,4470.7,4.2528]
[1755307204654,23.8346,4470.8,4470.7,4.4796]
[1755307205248,23.8346,4470.8,4470.7,4.8209]
[1755307205850,0.3353,4471.1,4470.8,0.5893]
[1755307206149,0.6544,4471.5,4471.0,1.6131]
[1755307206356,22.185,4471.4,4471.3,1.6131]
[1755307206550,0.3934,4472.3,4471.7,0.44693]
[1755307206750,0.17414863,4472.2,4472.0,0.6442]
[1755307207055,0.7382,4472.7,4472.6,1.6131]
[1755307207349,22.5849,4472.7,4472.6,1.6131]
[1755307207554,23.1582,4472.7,4472.6,1.2718]
[1755307207751,0.3353,4473.1,4472.6,0.6442]
[1755307207948,0.5688,4473.4,4473.3,1.2335]
[1755307208252,22.178,4473.4,4473.3,1.6131]
[1755307208756,22.5809,4473.4,4473.3,1.6131]
[1755307208960,22.9162,4473.4,4473.3,1.6131]
[1755307209162,23.5476,4473.4,4473.3,1.6131]
[1755307209348,22.178,4473.4,4473.3,1.6131]
[1755307209554,0.9762,4474.1,4474.0,1.2335]
[1755307209750,23.97696057,4474.1,4474.0,1.2718]
[1755307209953,23.97696057,4474.1,4474.0,1.6131]
[1755307210253,23.97696057,4474.1,4474.0,1.2718]
[1755307210453,0.5963,4474.0,4473.2,3.2078]
[1755307210757,1.6306,4473.3,4473.2,4.8209]
[1755307210959,22.5679,4473.3,4473.2,4.8209]
[1755307211158,22.163,4473.3,4473.2,4.8209]
[1755307211347,22.163,4473.3,4472.2,3.2078]
[1755307211348,33.96267106,4473.3,4472.2,3.2078]